bitfinex-derivatives/quotes_BTCF0:USTF0_20240820
["timestamp","ask_amount","ask_price","bid_price","bid_amount"]
[1724168596881,0.597482,59086.0,59085.0,0.06751179]
[1724168597175,0.597482,59086.0,59085.0,0.06851179]
[1724168597371,0.597482,59086.0,59085.0,0.001]
[1724168597884,0.665164,59086.0,59085.0,0.001]
[1724168598083,0.067688,59081.0,59080.0,0.00025384]
[1724168598275,0.067688,59081.0,59078.0,0.06751179]
[1724168598276,0.5008,59081.0,59078.0,0.06751179]
[1724168598477,0.5008,59081.0,59075.0,0.06751179]
[1724168598478,0.067692,59077.0,59075.0,0.06751179]
[1724168598777,0.067692,59077.0,59073.0,3.77]
[1724168598778,0.067696,59074.0,59073.0,3.77088]
[1724168598983,0.14,59074.0,59066.0,0.15219603]
[1724168599183,0.14,59074.0,59060.0,0.10129026]
[1724168599184,1.38514,59073.0,59067.0,0.06749266]
[1724168599379,0.7114,59068.0,59065.0,0.05062016]
[1724168599580,0.067705,59066.0,59065.0,0.05062016]
[1724168599887,0.14,59066.0,59065.0,0.05058204]
[1724168600487,0.14,59066.0,59064.0,0.11854288]
[1724168600680,0.139,59066.0,59064.0,0.11854288]
[1724168601575,0.139,59066.0,59064.0,0.00025384]
[1724168601978,0.14739275,59066.0,59064.0,0.00025384]
[1724168603572,0.8763,59065.0,59064.0,0.00025384]
[1724168603777,1.0463,59065.0,59064.0,0.00025384]
[1724168603986,1.114006,59065.0,59064.0,0.00025384]
[1724168605280,0.067717,59056.0,59054.0,0.00017283]
[1724168605475,1.7277,59056.0,59048.0,0.05058204]
[1724168605788,0.7114,59049.0,59042.0,0.1618]
[1724168605974,0.7114,59049.0,59035.0,0.06749266]
[1724168605975,0.067739,59036.0,59035.0,0.06749266]
[1724168606175,0.067739,59036.0,59035.0,0.05047242]
[1724168606176,0.8714,59036.0,59035.0,0.05047242]
[1724168606379,0.8714,59036.0,59031.0,0.05047242]
[1724168606577,0.87154855,59036.0,59030.0,0.05064263]
[1724168607088,0.3608,59031.0,59030.0,0.00017021]
[1724168607279,0.5308,59031.0,59030.0,0.00017021]
[1724168608379,0.95740555,59031.0,59030.0,0.00017021]
[1724168608681,0.06775,59027.0,59020.0,0.3223]
[1724168608892,0.7114,59022.0,59020.0,0.1658]
[1724168609083,0.00013207,59021.0,59020.0,0.1658]
[1724168609386,0.15013207,59021.0,59018.0,0.06776]
[1724168609589,0.15013207,59021.0,59013.0,0.1652]
[1724168609985,0.3608,59015.0,59010.0,0.067769]
[1724168610290,0.3506,59011.0,59010.0,0.067769]
[1724168610481,0.3608,59015.0,59012.0,0.067767]
[1724168610789,0.5008,59015.0,59012.0,0.067767]
[1724168611380,0.50923816,59015.0,59012.0,0.067767]
[1724168612577,0.50923816,59015.0,59013.0,0.067766]
[1724168612778,0.50923816,59015.0,59010.0,0.3608]
[1724168612984,0.36923816,59015.0,59010.0,0.3608]
[1724168613279,0.00843816,59015.0,59014.0,0.067765]
[1724168613483,0.00013207,59021.0,59016.0,0.067762]
[1724168613683,0.15013207,59021.0,59016.0,0.067762]
[1724168614088,0.3608,59017.0,59016.0,0.067762]
[1724168614280,0.5008,59017.0,59016.0,0.067762]
[1724168614482,0.5008,59017.0,59010.0,0.3608]
[1724168614694,0.5008,59017.0,59013.0,0.067766]
[1724168614888,0.5008,59017.0,59014.0,0.067764]
[1724168615284,0.3506,59016.0,59014.0,0.067764]
[1724168615484,0.5106,59016.0,59014.0,0.067764]
[1724168616089,0.5106,59016.0,59010.0,0.428569]
[1724168616090,0.576124,59015.0,59010.0,0.428569]
[1724168616296,0.576124,59015.0,59012.0,0.067766]
[1724168616297,0.15,59015.0,59012.0,0.067766]
[1724168616492,0.15,59015.0,59013.0,0.067765]
[1724168616691,0.15,59015.0,59014.0,0.067765]
[1724168617295,0.7114,59022.0,59014.0,0.067765]
[1724168617296,0.00013207,59021.0,59020.0,0.067758]
[1724168617494,0.3608,59036.0,59022.0,0.13551]
[1724168617692,0.3608,59036.0,59035.0,0.067741]
[1724168617993,0.067741,59035.0,59028.0,0.3608]
[1724168618188,0.227741,59035.0,59034.0,3.77]
[1724168618489,0.16004076,59035.0,59034.0,3.77]
[1724168618687,0.16004076,59035.0,59034.0,3.837742]
[1724168618888,0.16004076,59035.0,59034.0,4.198542]
[1724168619094,0.16004076,59035.0,59034.0,3.837742]
[1724168619284,0.16004076,59035.0,59034.0,3.77]
[1724168619485,0.80368276,59035.0,59034.0,3.77]
[1724168619685,1.20368276,59035.0,59034.0,3.77]
[1724168620192,0.067751,59026.0,59021.0,0.1553]
[1724168620388,0.3608,59024.0,59021.0,0.1553]
[1724168620691,0.067761,59017.0,59015.0,0.154]
[1724168620891,0.3608,59016.0,59015.0,0.154]
[1724168621193,0.5108,59016.0,59015.0,0.154]
[1724168621790,0.5108,59016.0,59013.0,0.067765]
[1724168622501,0.578562,59016.0,59009.0,0.06777]
[1724168622700,0.067765,59014.0,59009.0,0.06777]
[1724168622883,0.207765,59014.0,59009.0,0.06777]
[1724168623487,0.207765,59014.0,59010.0,0.067769]
[1724168624394,0.14,59014.0,59011.0,0.067768]
[1724168624790,0.207765,59014.0,59011.0,0.067768]
[1724168624997,0.3608,59012.0,59011.0,0.067768]
[1724168625296,0.5108,59012.0,59011.0,0.067768]
[1724168626390,0.5108,59012.0,59005.0,0.00014109]
[1724168626391,0.067772,59008.0,59005.0,0.00014109]
[1724168626592,0.496348,59006.0,59005.0,0.00014109]
[1724168626791,0.578574,59006.0,59005.0,0.00014109]
[1724168627688,0.578574,59006.0,58996.0,0.05030763]
[1724168627689,1.487014,59006.0,58996.0,0.05030763]
[1724168627890,1.487014,59006.0,58989.0,0.08449103]
[1724168627891,0.3608,58999.0,58993.0,0.05030763]
[1724168628097,0.3608,58994.0,58992.0,0.1621]
[1724168628299,0.5108,58994.0,58992.0,0.1621]
[1724168628503,0.578588,58994.0,58992.0,0.1621]
[1724168628705,0.06796365,58993.0,58992.0,0.1621]
[1724168628892,0.65869465,58993.0,58988.0,0.05030763]
[1724168629094,0.428593,58989.0,58987.0,0.05030763]
[1724168629294,0.568593,58989.0,58987.0,0.05030763]
[1724168629493,0.568593,58989.0,58985.0,3.77]
[1724168629494,0.4393,58988.0,58985.0,0.00088]
[1724168629709,0.4393,58988.0,58984.0,0.05033703]
[1724168629710,0.3608,58987.0,58984.0,0.05033703]
[1724168630003,0.5008,58987.0,58985.0,3.82033703]
[1724168630304,0.5008,58987.0,58986.0,0.05033703]
[1724168630902,0.5008,58987.0,58976.0,0.08449103]
[1724168630903,0.5008,58987.0,58985.0,0.05033703]
[1724168631202,0.5008,58987.0,58983.0,3.77]
[1724168631203,0.067799,58984.0,58983.0,3.77]
[1724168631401,0.237799,58984.0,58983.0,3.77]
[1724168631697,0.237799,58984.0,58981.0,0.05033703]
[1724168631698,0.067801,58982.0,58981.0,0.05035066]
[1724168631895,0.067801,58982.0,58968.0,0.152]
[1724168631896,0.067804,58980.0,58979.0,0.05035066]
[1724168632107,0.647104,58980.0,58975.0,3.82035066]
[1724168632294,0.067811,58974.0,58973.0,0.05035066]
[1724168632492,0.067814,58971.0,58968.0,0.05035066]
[1724168632692,0.3608,58969.0,58965.0,0.06749266]
[1724168632893,0.4393,58966.0,58965.0,0.06749266]
[1724168633095,0.52991762,58966.0,58964.0,0.06804152]
[1724168633291,0.52991762,58966.0,58964.0,0.00021952]
[1724168633492,0.52991762,58966.0,58961.0,0.08449103]
[1724168633493,0.94806,58965.0,58961.0,0.08449103]
[1724168633689,0.94806,58965.0,58960.0,0.05036665]
[1724168633690,0.3608,58962.0,58960.0,0.05036665]
[1724168633894,0.4393,58961.0,58960.0,0.05036522]
[1724168634200,0.647126,58961.0,58960.0,0.05036489]
[1724168634393,0.647126,58961.0,58956.0,0.06715553]
[1724168634591,0.00021459,58960.0,58956.0,0.06715553]
[1724168634795,0.15021459,58960.0,58959.0,0.05034466]
[1724168635100,0.15021459,58960.0,58959.0,0.05034461]
[1724168635494,0.65905459,58960.0,58959.0,0.05032903]
[1724168635699,0.72688159,58960.0,58959.0,0.05032854]
[1724168635894,1.41985459,58960.0,58954.0,0.05032854]
[1724168636091,0.3608,58955.0,58950.0,0.06715553]
[1724168636295,0.5108,58955.0,58954.0,0.05033426]
[1724168636497,0.5108,58955.0,58950.0,0.06715553]
[1724168636698,0.15,58955.0,58951.0,0.06715553]
[1724168636907,0.15,58955.0,58952.0,0.06715553]
[1724168637214,0.15,58955.0,58953.0,0.06715553]
[1724168637406,0.15,58955.0,58951.0,0.067837]
[1724168637407,0.09909255,58955.0,58952.0,0.06715553]
[1724168637599,0.0566695,58955.0,58951.0,0.06715553]
[1724168637798,0.0566695,58955.0,58952.0,0.067836]
[1724168638209,0.0566695,58955.0,58950.0,0.06715553]
[1724168638210,0.4959695,58955.0,58950.0,0.06715553]
[1724168638505,0.50466756,58955.0,58953.0,0.05024091]
[1724168638711,0.50466756,58955.0,58954.0,0.05024091]
[1724168638898,0.50466756,58955.0,58951.0,3.838797]
[1724168639100,0.50466756,58955.0,58952.0,0.067836]
[1724168639407,0.50466756,58955.0,58954.0,0.05024573]
[1724168639599,0.50466756,58955.0,58953.0,0.05024573]
[1724168639799,0.86546756,58955.0,58953.0,0.05024573]
[1724168640210,0.067834,58954.0,58952.0,0.05024573]
[1724168640404,0.207834,58954.0,58952.0,0.05024573]
[1724168640599,0.207834,58954.0,58951.0,3.82116573]
[1724168640600,0.716714,58954.0,58951.0,3.82116573]
[1724168640807,0.14,58954.0,58949.0,0.3608]
[1724168641004,0.067838,58950.0,58949.0,0.3608]
[1724168641204,0.217838,58950.0,58949.0,4.1308]
[1724168641808,0.578638,58950.0,58949.0,3.77]
[1724168642112,0.5108,58950.0,58949.0,3.77]
[1724168642911,0.578638,58950.0,58949.0,3.77]
[1724168643406,0.067843,58946.0,58944.0,0.05024573]
[1724168643603,0.06800437,58945.0,58941.0,0.3608]
[1724168643804,0.22800437,58945.0,58941.0,0.3608]
[1724168644008,0.22800437,58945.0,58942.0,3.77]
[1724168644512,0.16016037,58945.0,58942.0,3.77]
[1724168644814,0.16016037,58945.0,58943.0,0.067846]
[1724168645303,0.067846,58943.0,58942.0,3.77088]
[1724168645499,0.237846,58943.0,58942.0,3.77]
[1724168646099,0.237846,58943.0,58942.0,3.837847]
[1724168646100,0.17,58943.0,58942.0,3.837847]
[1724168646815,0.23016037,58945.0,58944.0,0.067845]
[1724168647000,0.14016037,58945.0,58944.0,0.067845]
[1724168647201,0.24,58947.0,58946.0,0.067843]
[1724168647408,0.00172001,58961.0,58960.0,0.067827]
[1724168647606,0.15,58961.0,58960.0,0.067827]
[1724168647807,0.15,58961.0,58960.0,0.976627]
[1724168648002,0.067806,58978.0,58960.0,0.3608]
[1724168648201,0.067806,58978.0,58965.0,0.05009752]
[1724168648202,0.00017579,58974.0,58965.0,0.05009752]
[1724168648409,0.16017579,58974.0,58973.0,0.3608]
[1724168648706,0.16017579,58974.0,58973.0,0.428612]
[1724168648911,0.067815,58970.0,58967.0,0.3608]
[1724168649113,0.568615,58970.0,58969.0,3.77]
[1724168649307,2.35203,58970.0,58969.0,3.77]
[1724168649508,2.86075,58970.0,58969.0,3.74347985]
[1724168649812,0.50876,58969.0,58952.0,0.067836]
[1724168650004,0.50876,58969.0,58946.0,0.3608]
[1724168650005,0.4393,58957.0,58954.0,0.067833]
[1724168650209,0.4393,58957.0,58951.0,0.41089752]
[1724168650210,0.00011891,58956.0,58955.0,0.067832]
[1724168650411,0.14011891,58956.0,58955.0,0.067832]
[1724168650718,0.14011891,58956.0,58955.0,3.88792952]
[1724168650917,0.14011891,58956.0,58955.0,3.837832]
[1724168651605,0.14411891,58956.0,58955.0,3.83701876]
[1724168651810,0.58341891,58956.0,58955.0,3.77]
[1724168652514,0.57941891,58956.0,58955.0,3.771]
[1724168653209,0.14011891,58956.0,58955.0,3.838832]
[1724168653718,0.4393,58970.0,58955.0,4.67984]
[1724168653933,0.8763,58967.0,58960.0,0.067827]
[1724168654408,0.3608,58975.0,58960.0,0.067827]
[1724168654409,0.3608,58975.0,58960.0,1.03799451]
[1724168654608,0.3608,58975.0,58972.0,0.05038162]
[1724168654609,0.067812,58973.0,58972.0,0.05038162]
[1724168654911,0.22793409,58973.0,58969.0,0.0671755]
[1724168655114,0.22793409,58973.0,58970.0,0.1349905]
[1724168655412,0.16012209,58973.0,58971.0,0.067814]
[1724168655714,0.16012209,58973.0,58972.0,0.428613]
[1724168655907,0.16012209,58973.0,58972.0,0.64175285]
[1724168656213,0.00025431,58977.0,58976.0,0.067808]
[1724168656513,0.16025431,58977.0,58976.0,0.15185108]
[1724168656912,0.16025431,58977.0,58976.0,0.28101889]
[1724168657318,0.10936782,58977.0,58976.0,0.28101889]
[1724168657513,0.10936782,58977.0,58976.0,0.19697581]
[1724168658216,0.11536782,58977.0,58976.0,0.19697581]
[1724168659710,0.11536782,58977.0,58976.0,0.29826607]
[1724168660311,0.11536782,58977.0,58976.0,0.19697581]
[1724168660518,0.11536782,58977.0,58976.0,0.29826607]
[1724168661111,0.135616,58976.0,58975.0,0.08427514]
[1724168661315,0.5108,58976.0,58975.0,0.06742979]
[1724168661615,0.135622,58974.0,58973.0,0.05058441]
[1724168661815,0.067814,58971.0,58966.0,3.85452945]
[1724168662111,0.227814,58971.0,58967.0,0.21346687]
[1724168662414,0.16882123,58971.0,58967.0,0.067818]
[1724168662623,0.067816,58969.0,58966.0,3.77129431]
[1724168662918,0.227816,58969.0,58966.0,3.77025431]
[1724168663418,0.227816,58969.0,58966.0,3.83807331]
[1724168663816,0.16,58969.0,58968.0,0.067818]
[1724168664515,0.16,58969.0,58968.0,0.13526677]
[1724168665119,0.16,58969.0,58968.0,0.067818]
[1724168665518,0.16,58969.0,58968.0,0.13527164]
[1724168665708,0.163,58969.0,58968.0,0.13527164]
[1724168666017,0.230816,58969.0,58968.0,0.06745364]
[1724168666823,0.230816,58969.0,58966.0,0.00117431]
[1724168666824,0.067818,58968.0,58967.0,0.06745364]
[1724168667116,0.067819,58967.0,58966.0,0.00025431]
[1724168667319,0.275638,58967.0,58966.0,0.00025431]
[1724168667523,0.275638,58967.0,58955.0,0.3608]
[1724168667524,0.5088,58966.0,58959.0,0.05060247]
[1724168667814,0.867927,58960.0,58955.0,0.05060247]
[1724168668015,0.067833,58955.0,58954.0,0.05060247]
[1724168668215,0.067834,58954.0,58953.0,0.05060672]
[1724168668421,0.237834,58954.0,58953.0,0.0506064]
[1724168668622,0.237834,58954.0,58950.0,3.83846996]
[1724168668813,0.17,58954.0,58952.0,0.06746996]
[1724168669015,0.17,58954.0,58953.0,0.13530496]
[1724168669216,0.17,58954.0,58953.0,0.428635]
[1724168669717,0.17,58954.0,58953.0,0.937515]
[1724168669918,0.00025431,58959.0,58958.0,0.067829]
[1724168670114,0.17025431,58959.0,58958.0,0.067829]
[1724168672126,0.067821,58966.0,58958.0,0.48999856]
[1724168672311,0.237821,58966.0,58964.0,0.13529023]
[1724168672517,0.24640152,58966.0,58965.0,0.06746923]
[1724168672818,0.24640152,58966.0,58965.0,3.90529023]
[1724168673017,0.24640152,58966.0,58965.0,3.83746923]
[1724168673929,0.17858052,58966.0,58965.0,3.77]
[1724168674525,0.17858052,58966.0,58965.0,3.837821]
[1724168675224,0.17958052,58966.0,58965.0,3.837821]
[1724168675522,0.24740052,58966.0,58965.0,3.837821]
[1724168678321,0.06806831,58971.0,58970.0,0.067815]
[1724168678521,0.067815,58970.0,58969.0,0.06759045]
[1724168678727,0.06782,58966.0,58965.0,3.77]
[1724168679033,0.58862,58966.0,58965.0,3.77]
[1724168679728,0.067821,58965.0,58964.0,0.06784861]
[1724168679932,0.237821,58965.0,58964.0,0.00025431]
[1724168680325,0.237821,58965.0,58964.0,3.83784861]
[1724168680630,0.237821,58965.0,58964.0,3.77025431]
[1724168681421,0.237821,58965.0,58964.0,3.83807631]
[1724168681422,0.17,58965.0,58964.0,3.83807631]
[1724168682131,0.17,58965.0,58964.0,4.19887631]
[1724168682334,0.0262243,58965.0,58964.0,5.17549831]
[1724168682634,0.00025431,58971.0,58970.0,0.067815]
[1724168683031,0.00025431,58971.0,58970.0,0.576535]
[1724168683234,0.00025431,58971.0,58970.0,0.976535]
[1724168683537,0.00025431,58971.0,58970.0,0.79021022]
[1724168683930,0.00025431,58971.0,58970.0,0.976535]
[1724168684125,0.00025431,58971.0,58970.0,4.87570378]
[1724168684721,0.00025431,58971.0,58970.0,4.94351878]
[1724168684926,0.00725431,58971.0,58970.0,4.54351878]
[1724168685330,0.00725431,58971.0,58970.0,4.94351878]
[1724168685629,0.067803,58981.0,58980.0,0.067803]
[1724168685827,0.21660986,58981.0,58980.0,0.067803]
[1724168686230,0.21660986,58981.0,58980.0,3.837803]
[1724168688323,0.15980686,58981.0,58980.0,3.838803]
[1724168689031,0.14880686,58981.0,58980.0,3.837803]
[1724168689235,0.15980686,58981.0,58980.0,3.838803]
[1724168690528,0.15980686,58981.0,58980.0,3.90638368]
[1724168690728,0.011,58981.0,58980.0,3.906607]
[1724168691133,0.011,58981.0,58980.0,3.99108285]
[1724168691437,0.011,58981.0,58980.0,3.84724431]
[1724168691933,0.011,58981.0,58974.0,0.06781]
[1724168691934,0.13562,58975.0,58974.0,0.08447585]
[1724168692138,0.5108,58975.0,58971.0,0.06754663]
[1724168692433,0.578611,58975.0,58974.0,0.067811]
[1724168693438,0.15,58975.0,58974.0,0.067811]
[1724168693633,0.15,58975.0,58974.0,0.13535763]
[1724168694539,0.154,58975.0,58974.0,0.13535763]
[1724168694731,0.23048123,58975.0,58974.0,0.06754663]
[1724168694930,0.067812,58973.0,58972.0,0.06842663]
[1724168695130,0.067812,58973.0,58972.0,0.13623963]
[1724168695131,0.217812,58973.0,58972.0,0.13623963]
[1724168695341,0.15,58973.0,58972.0,3.90535963]
[1724168695537,0.15,58973.0,58972.0,3.837813]
[1724168696240,0.152,58973.0,58972.0,3.90535963]
[1724168696929,0.152,58973.0,58972.0,3.837813]
[1724168697443,0.001,58973.0,58972.0,4.505833]
[1724168698140,0.067807,58978.0,58977.0,0.067807]
[1724168698340,0.207807,58978.0,58977.0,0.1353439]
[1724168698541,0.14,58978.0,58977.0,0.1353439]
[1724168698741,0.14,58978.0,58977.0,3.9053439]
[1724168698941,0.14,58978.0,58977.0,3.837807]
[1724168699435,0.14,58978.0,58977.0,3.9053439]
[1724168699827,0.149,58978.0,58977.0,3.838807]
[1724168700233,0.149,58978.0,58977.0,3.9063915]
[1724168701037,0.9494,58978.0,58977.0,0.06759372]
[1724168701242,0.067808,58977.0,58976.0,0.067808]
[1724168701430,0.17,58977.0,58976.0,3.837808]
[1724168702236,0.237807,58977.0,58976.0,3.77]
[1724168702541,0.244807,58977.0,58976.0,0.06861468]
[1724168702848,0.244807,58977.0,58976.0,0.06861394]
[1724168703233,0.244807,58977.0,58976.0,0.001]
[1724168704143,0.244807,58977.0,58976.0,0.06862457]
[1724168704335,0.244807,58977.0,58976.0,0.001]
[1724168704532,1.110807,58977.0,58976.0,0.05172528]
[1724168704751,1.110807,58977.0,58976.0,0.001]
[1724168704940,1.110807,58977.0,58976.0,0.0517252]
[1724168705247,1.110807,58977.0,58976.0,0.001]
[1724168706243,0.5378,58977.0,58976.0,0.068808]
[1724168706447,0.177,58977.0,58976.0,0.068808]
[1724168707245,0.5288,58977.0,58976.0,0.068808]
[1724168707449,0.8896,58977.0,58976.0,0.13645718]
[1724168708344,0.596607,58977.0,58976.0,0.06864918]
[1724168708644,0.596607,58977.0,58976.0,0.06865649]
[1724168708847,0.957407,58977.0,58976.0,0.001]
[1724168709438,0.957407,58977.0,58976.0,0.06865649]
[1724168710541,1.025214,58977.0,58976.0,0.001]
[1724168710737,1.025214,58977.0,58964.0,0.00025431]
[1724168710738,0.067813,58972.0,58964.0,0.00025431]
[1724168710942,0.067814,58971.0,58969.0,0.05077953]
[1724168711143,0.428615,58970.0,58969.0,0.05076852]
[1724168711349,0.428615,58970.0,58965.0,0.06770313]
[1724168711350,0.067816,58969.0,58968.0,0.05076852]
[1724168711650,0.217816,58969.0,58968.0,0.05076852]
[1724168711948,0.135636,58968.0,58967.0,0.05076852]
[1724168712151,0.135636,58968.0,58966.0,0.05076852]
[1724168712152,0.067819,58967.0,58966.0,0.05076852]
[1724168712447,0.15,58967.0,58966.0,0.13552313]
[1724168712643,0.15,58967.0,58966.0,0.06782]
[1724168712836,0.15,58967.0,58966.0,0.19700489]
[1724168713041,0.87802001,58969.0,58968.0,0.067818]
[1724168713250,0.87802001,58969.0,58968.0,0.28159821]
[1724168713251,0.8763,58969.0,58968.0,0.28159821]
[1724168713436,0.8763,58969.0,58968.0,0.067818]
[1724168713437,1.0463,58969.0,58968.0,0.067818]
[1724168714245,1.0463,58969.0,58968.0,0.51321805]
[1724168714446,1.0463,58969.0,58968.0,0.428618]
[1724168714746,1.0463,58969.0,58968.0,0.067818]
[1724168715340,0.17,58969.0,58968.0,0.067818]
[1724168715652,0.17,58969.0,58968.0,0.068818]
[1724168716042,0.589616,58969.0,58968.0,0.001]
[1724168716351,0.589616,58969.0,58968.0,0.06867838]
[1724168716649,0.589616,58969.0,58968.0,0.001]
[1724168716839,0.17,58969.0,58968.0,0.001]
[1724168717437,0.5218,58969.0,58968.0,0.001]
[1724168717843,0.589616,58969.0,58968.0,0.0686785]
[1724168718047,0.589616,58969.0,58968.0,0.06867862]
[1724168718250,0.589616,58969.0,58968.0,0.001]
[1724168718447,0.589616,58969.0,58968.0,0.06867862]
[1724168718848,0.589616,58969.0,58968.0,0.001]
[1724168719342,1.926992,58969.0,58968.0,0.001]
[1724168719555,0.950416,58969.0,58968.0,0.0517602]
[1724168719742,0.950416,58969.0,58968.0,0.001]
[1724168720547,0.950416,58969.0,58968.0,0.05175905]
[1724168720751,0.950416,58969.0,58968.0,0.001]
[1724168720946,0.950416,58969.0,58968.0,0.05175856]
[1724168721147,0.950416,58969.0,58968.0,0.001]
[1724168722142,1.459176,58969.0,58968.0,0.001]
[1724168722348,0.067821,58965.0,58964.0,0.00025431]
[1724168722646,0.227821,58965.0,58964.0,0.00025431]
[1724168722847,0.16,58965.0,58964.0,3.83807631]
[1724168723753,0.16,58965.0,58964.0,3.83907631]
[1724168723955,0.16,58965.0,58964.0,4.05286501]
[1724168724154,0.16,58965.0,58964.0,3.96826496]
[1724168724355,0.16,58965.0,58964.0,4.26126496]
[1724168724756,0.94583201,58973.0,58972.0,0.067813]
[1724168724757,0.00172001,58973.0,58972.0,0.067813]
[1724168724955,0.00025431,58974.0,58973.0,0.067812]
[1724168725262,0.06655365,58991.0,58973.0,0.98472638]
[1724168725459,0.25,58993.0,58991.0,0.067791]
[1724168725753,0.25,58993.0,58989.0,0.3608]
[1724168725754,0.227789,58993.0,58992.0,0.06765472]
[1724168725959,0.06779,58992.0,58990.0,0.067791]
[1724168726159,0.3518,58991.0,58989.0,0.0507202]
[1724168726356,0.4918,58991.0,58988.0,0.0507192]
[1724168726557,0.4918,58991.0,58987.0,0.0507192]
[1724168726760,0.4918,58991.0,58990.0,0.0507192]
[1724168726950,0.4918,58991.0,58987.0,0.13544165]
[1724168726951,0.14,58991.0,58987.0,0.13544165]
[1724168727146,0.06779,58992.0,58989.0,0.067793]
[1724168727347,0.06779,58992.0,58990.0,0.05069851]
[1724168727558,0.17,58992.0,58989.0,0.05069851]
[1724168727860,0.50856,58991.0,58985.0,0.05069851]
[1724168728158,0.50856,58991.0,58981.0,0.06764565]
[1724168728159,0.0678,58983.0,58967.0,0.08456841]
[1724168728360,0.0678,58983.0,58960.0,0.10129026]
[1724168728361,0.3608,58976.0,58969.0,0.05071692]
[1724168728564,0.067816,58969.0,58967.0,0.05071692]
[1724168728862,0.216816,58969.0,58967.0,0.05071692]
[1724168729254,0.067818,58968.0,58964.0,0.06762256]
[1724168729457,0.3518,58966.0,58964.0,0.06762256]
[1724168729658,0.5018,58966.0,58964.0,0.06762256]
[1724168729857,0.5008,58966.0,58964.0,0.06762256]
[1724168730047,0.5008,58966.0,58962.0,0.00025431]
[1724168730048,0.3608,58965.0,58962.0,0.05072175]
[1724168730248,0.3608,58965.0,58954.0,0.05072104]
[1724168730249,0.3518,58963.0,58954.0,0.05072104]
[1724168730459,0.7126,58955.0,58952.0,0.05072104]
[1724168730651,0.7126,58955.0,58946.0,3.77]
[1724168730652,0.3608,58960.0,58953.0,0.11855504]
[1724168730852,0.3608,58960.0,58958.0,0.05072168]
[1724168731156,0.3608,58960.0,58959.0,0.11853812]
[1724168731661,0.5149,58965.0,58959.0,0.067629]
[1724168731662,0.3608,58965.0,58959.0,0.067629]
[1724168731863,0.36105431,58965.0,58963.0,0.11852823]
[1724168732159,0.00025431,58965.0,58964.0,0.05070523]
[1724168732358,0.00025431,58965.0,58964.0,0.05070332]
[1724168732861,0.86985431,58965.0,58964.0,0.05070332]
[1724168733060,0.067834,58954.0,58948.0,0.05071872]
[1724168733267,0.067846,58943.0,58942.0,0.05071872]
[1724168733558,0.3518,58940.0,58938.0,0.05069659]
[1724168733954,0.789446,58943.0,58936.0,0.067629]
[1724168734160,0.789446,58943.0,58938.0,0.05069681]
[1724168735264,0.00025431,58945.0,58939.0,0.3608]
[1724168735464,0.00025431,58945.0,58941.0,0.11854481]
[1724168735763,0.00025431,58945.0,58942.0,0.11854381]
[1724168736265,0.00025431,58945.0,58942.0,0.067847]
[1724168736466,0.00025431,58945.0,58943.0,0.067846]
[1724168737360,0.00025431,58945.0,58941.0,0.05069681]
[1724168737662,0.00025431,58945.0,58940.0,0.11854581]
[1724168737866,0.15025431,58945.0,58940.0,0.11854581]
[1724168738160,0.15025431,58945.0,58940.0,0.067849]
[1724168738568,0.15025431,58945.0,58941.0,0.067848]
[1724168739160,0.15025431,58945.0,58942.0,3.77]
[1724168739666,0.3518,58944.0,58939.0,0.05069681]
[1724168739867,0.217846,58944.0,58939.0,0.05069681]
[1724168740162,0.217846,58944.0,58940.0,3.83785]
[1724168741165,0.217846,58944.0,58941.0,0.067848]
[1724168741166,0.067846,58943.0,58941.0,0.067848]
[1724168741470,0.217846,58943.0,58941.0,0.067848]
[1724168742064,0.15,58943.0,58941.0,0.067848]
[1724168743661,0.15,58943.0,58942.0,0.067848]
[1724168743862,0.15,58943.0,58942.0,0.47934481]
[1724168744061,0.10757185,58943.0,58942.0,0.428648]
[1724168744458,0.00212001,58957.0,58942.0,0.7608]
[1724168744664,0.3608,58955.0,58950.0,0.067838]
[1724168744873,0.067836,58952.0,58951.0,0.067837]
[1724168745074,0.217836,58952.0,58951.0,0.067837]
[1724168745258,0.15,58952.0,58949.0,0.3608]
[1724168745463,0.067838,58950.0,58949.0,0.3608]
[1724168745661,0.15,58950.0,58949.0,0.428639]
[1724168746063,0.00025431,58956.0,58949.0,1.26972]
[1724168746265,0.067819,58967.0,58955.0,0.3608]
[1724168746468,0.237819,58967.0,58960.0,0.3608]
[1724168746765,0.237819,58967.0,58961.0,3.77]
[1724168746965,0.17,58967.0,58966.0,0.06782]
[1724168747160,0.002,58974.0,58973.0,0.067812]
[1724168747362,0.3608,58983.0,58977.0,0.067807]
[1724168747363,0.067803,58981.0,58977.0,0.067807]
[1724168747564,0.14,58981.0,58979.0,0.067805]
[1724168748369,0.5008,58981.0,58978.0,3.771]
[1724168748567,0.067805,58979.0,58978.0,3.77]
[1724168748768,0.067805,58979.0,58974.0,0.06781]
[1724168748769,0.06781,58975.0,58974.0,0.00025431]
[1724168749073,0.94041,58975.0,58961.0,0.3608]
[1724168749372,0.94041,58975.0,58966.0,3.77]
[1724168749373,0.3518,58968.0,58966.0,3.77]
[1724168749577,0.5118,58968.0,58966.0,3.77]
[1724168750175,0.5108,58968.0,58966.0,3.77]
[1724168750971,0.50876,58967.0,58961.0,0.00025431]
[1724168751171,0.3608,58962.0,58961.0,0.00025431]
[1724168751366,0.3608,58962.0,58961.0,3.77025431]
[1724168751367,0.14,58962.0,58961.0,3.77025431]
[1724168752275,0.14,58962.0,58961.0,3.83808031]
[1724168753269,0.8783,58966.0,58964.0,0.067822]
[1724168753471,0.002,58962.0,58961.0,3.83896031]
[1724168753678,0.002,58962.0,58961.0,3.83808031]
[1724168754174,0.87842001,58966.0,58961.0,3.83808031]
[1724168754175,0.87842001,58966.0,58965.0,0.067821]
[1724168754371,0.8763,58966.0,58965.0,0.428621]
[1724168754674,0.8763,58966.0,58965.0,0.47913646]